fUSD/lending_fUSD_20250502
["ID","MTS","AMOUNT","RATE_DAILY","PERIOD"]
[359599867,1746176816267,-684.74,0.00019793,2]
[359599868,1746176816294,-827.76,0.00019793,2]
[359599869,1746176816321,-450.0,0.00019793,2]
[359599870,1746176816351,-989.41,0.00019793,2]
[359599871,1746176816380,-599.44,0.00019793,2]
[359599872,1746176816410,-467.61,0.00019793,2]
[359599873,1746176816437,-935.2,0.00019793,2]
[359599874,1746176816468,-450.0,0.00019793,2]
[359599875,1746176816496,-1000.0,0.00019793,2]
[359599876,1746176816523,-450.0,0.00019793,2]
[359599877,1746176816550,-450.0,0.00019793,2]
[359599878,1746176816577,-450.0,0.00019793,2]
[359599879,1746176816604,-450.0,0.00019793,2]
[359599880,1746176816629,-450.0,0.00019793,2]
[359599881,1746176816655,-450.0,0.00019793,2]
[359599882,1746176816681,-733.75,0.00019793,2]
[359599883,1746176816727,-891.56,0.00019793,2]
[359599884,1746176816774,-450.0,0.00019793,2]
[359599885,1746176816815,-4372.86,0.00019793,2]
[359599886,1746176816860,-717.85,0.00019793,2]
[359599887,1746176816903,-1475.64,0.00019793,2]
[359599888,1746176816945,-450.0,0.00019793,2]
[359599889,1746176816985,-683.28,0.00019793,2]
[359599890,1746176817020,-450.0,0.00019793,2]
[359599891,1746176817065,-2362.87,0.00019793,2]
[359599892,1746176817104,-450.0,0.00019793,2]
[359599893,1746176817148,-503.34,0.00019793,2]
[359599894,1746176817187,-548.81,0.00019793,2]
[359599895,1746176817225,-867.79,0.00019793,2]
[359599896,1746176817264,-450.0,0.00019793,2]
[359599897,1746176817302,-450.0,0.00019793,2]
[359599898,1746176817339,-825.14,0.00019793,2]
[359599899,1746176817376,-155.5769965,0.00019799,2]
[359599900,1746176817419,-1300.74,0.000198,2]
[359599901,1746176817460,-459.22,0.000198,2]
[359599902,1746176817499,-450.0,0.000198,2]
[359599903,1746176817537,-450.0,0.000198,2]
[359599904,1746176817576,-683.58,0.000198,2]
[359599905,1746176817615,-492.36,0.000198,2]
[359599906,1746176817653,-782.79,0.000198,2]
[359599907,1746176817692,-914.98,0.000198,2]
[359599908,1746176817731,-897.1,0.000198,2]
[359599909,1746176817768,-450.0,0.000198,2]
[359599910,1746176817805,-699.4,0.000198,2]
[359599911,1746176817841,-450.0,0.000198,2]
[359599912,1746176817878,-450.0,0.000198,2]
[359599913,1746176817915,-1435.8,0.000198,2]
[359599914,1746176817953,-450.0,0.000198,2]
[359599915,1746176817990,-661.17,0.000198,2]
[359599916,1746176818026,-450.0,0.000198,2]
[359599917,1746176818062,-885.99,0.000198,2]
[359599918,1746176818097,-880.67,0.000198,2]
[359599919,1746176818132,-500.0,0.00019803,2]
[359599920,1746176818167,-450.0,0.00019803,2]
[359599921,1746176818204,-151.51770952,0.00019803,2]
[359599922,1746176818241,-574.74,0.00019803,2]
[359599923,1746176818278,-450.0,0.00019803,2]
[359599924,1746176818315,-450.0,0.00019803,2]
[359599925,1746176818351,-450.0,0.00019803,2]
[359599926,1746176818387,-450.0,0.00019803,2]
[359599927,1746176818427,-557.57,0.00019803,2]
[359599928,1746176818455,-450.0,0.00019803,2]
[359599929,1746176818484,-401.09591016,0.00019803,2]
[359599930,1746176818511,-450.0,0.00019803,2]
[359599931,1746176818538,-450.0,0.00019803,2]
[359599932,1746176818566,-450.0,0.00019803,2]
[359599933,1746176818592,-450.0,0.00019803,2]
[359599934,1746176818618,-450.0,0.00019803,2]
[359599935,1746176818644,-450.0,0.00019803,2]
[359599936,1746176818670,-450.0,0.00019803,2]
[359599937,1746176818697,-450.0,0.00019803,2]
[359599938,1746176818723,-726.49,0.00019803,2]
[359599939,1746176818751,-684.22,0.00019803,2]
[359599940,1746176818777,-1498.12,0.00019803,2]
[359599941,1746176818803,-450.0,0.00019803,2]
[359599942,1746176818829,-450.0,0.00019803,2]
[359599943,1746176818857,-3536.988839,0.00019808,2]
[359599944,1746176819363,-179.26896799,0.00019811,2]
[359599945,1746176819413,-450.0,0.00019821,2]
[359599946,1746176819441,-8611.26,0.00019821,2]
[359599947,1746176819467,-450.0,0.00019821,2]
[359599948,1746176819496,-8284.57,0.00019821,2]
[359599949,1746176819523,-450.0,0.00019821,2]
[359599950,1746176819551,-1132.53,0.00019821,2]
[359599951,1746176819577,-680.4,0.00019821,2]
[359599952,1746176819604,-1378.12,0.00019821,2]
[359599953,1746176819631,-1156.77,0.00019821,2]
[359599954,1746176820250,-500.0,0.00019821,2]
[359599955,1746176820261,-154.59422856,0.00019821,2]
[359599956,1746176820285,-500.0,0.00019821,2]
[359599957,1746176820307,-500.0,0.00019821,2]
[359599958,1746176820323,-500.0,0.00019821,2]
[359599959,1746176820344,-500.0,0.00019821,2]
[359599960,1746176820370,-572.52556195,0.00019821,2]
[359599961,1746176820390,-532.12020949,0.00019821,2]
[359599962,1746176820404,-450.0,0.00019821,2]
[359599963,1746176820414,-17.87979051,0.00019821,2]
[359599964,1746176820426,-75176.97559624,0.00019821,2]
[359599965,1746176820438,-200.0,0.00019821,2]
[359599966,1746176820454,-179.268968,0.00019821,2]
[359599967,1746176820488,-200.0,0.00019821,2]
[359599968,1746176820505,-179.26896799,0.00019821,2]
[359599969,1746176820550,-3536.988839,0.00019821,2]
[359599970,1746176820606,-799.0,0.00019821,2]
[359599971,1746176820690,-450.0,0.00019821,2]
[359599972,1746176820708,-450.0,0.00019793,2]
[359599973,1746176820718,-1441.24,0.00019821,2]
[359599974,1746176820746,-12230.19,0.00019821,2]
[359599975,1746176820758,-577.77,0.00019821,2]
[359599976,1746176820777,-1040.07,0.00019821,2]
[359599977,1746176820798,-450.0,0.00019821,2]
[359599978,1746176820810,-450.0,0.00019821,2]
[359599979,1746176820826,-604.82,0.00019821,2]
[359599980,1746176820842,-544.24,0.00019821,2]
[359599981,1746176820859,-637.63,0.00019821,2]
[359599982,1746176820879,-781.46,0.00019821,2]
[359599983,1746176820896,-862.37,0.00019821,2]
[359599984,1746176820913,-450.0,0.00019821,2]
[359599985,1746176820937,-695.8,0.00019821,2]
[359599986,1746176820954,-450.0,0.00019821,2]
[359599987,1746176820968,-450.0,0.00019821,2]
[359599988,1746176820990,-450.0,0.00019821,2]
[359599989,1746176821012,-466.11,0.00019821,2]
[359599990,1746176821024,-450.0,0.00019821,2]
[359599991,1746176821045,-579.55,0.00019821,2]
[359599992,1746176821057,-450.0,0.00019821,2]
[359599993,1746176821068,-450.0,0.00019821,2]
[359599994,1746176821084,-635.04,0.00019821,2]
[359599995,1746176821105,-450.0,0.00019821,2]
[359599996,1746176821138,-450.0,0.00019821,2]
[359599997,1746176821154,-473.76,0.00019821,2]
[359599998,1746176821178,-1010.86,0.00019821,2]
[359599999,1746176821201,-755.82,0.00019821,2]
[359600000,1746176821218,-684.74,0.00019821,2]
[359600001,1746176821230,-827.76,0.00019821,2]
[359600002,1746176821246,-450.0,0.00019821,2]
[359600003,1746176821262,-989.41,0.00019821,2]
[359600004,1746176821296,-42880.12783826,0.00019821,2]
[359600005,1746176821324,-450.0,0.00019821,2]
[359600006,1746176821353,-8278.95,0.00019821,2]
[359600007,1746176821382,-3536.988839,0.00019831,2]
[359600008,1746176821414,-3536.988839,0.00019854,2]
[359600009,1746176821441,-179.26896799,0.00019855,2]
[359600010,1746176821473,-3536.988839,0.00019877,2]
[359600011,1746176821502,-3536.988839,0.000199,2]
[359600012,1746176821532,-179.26896799,0.000199,2]
[359600013,1746176821558,-3336.8284586,0.000199,2]
[359600014,1746176821582,-193.5978477,0.000199,2]
[359600015,1746176821607,-192.09136779,0.000199,2]
[359600016,1746176821631,-975.3953262,0.000199,2]
[359600017,1746176821657,-500.0,0.00019973,2]
[359600018,1746176821683,-500.0,0.00019973,2]
[359600019,1746176821708,-500.0,0.00019973,2]
[359600020,1746176821736,-500.0,0.00019973,2]
[359600021,1746176821767,-501.29863064,0.00019973,2]
[359600022,1746176821797,-164.593798,0.00019985,2]
[359600023,1746176821825,-164.593798,0.00019985,2]
[359600024,1746176821854,-594.0,0.00019986,2]
[359600025,1746176821884,-303.687651,0.00019986,2]
[359600026,1746176821912,-303.687651,0.00019986,2]
[359600027,1746176821939,-2237.9702672,0.00019986,2]
[359600028,1746176821967,-14759.5326566,0.00019986,2]
[359600029,1746176821996,-151.0,0.00019986,2]
[359600030,1746176822023,-151.0,0.00019986,2]
[359600031,1746176822051,-337.094471,0.00019986,2]
[359600032,1746176822078,-397.359816,0.00019986,2]
[359600033,1746176822105,-337.094471,0.00019986,2]
[359600034,1746176822132,-432.159956,0.00019986,2]
[359600035,1746176822161,-397.359816,0.00019986,2]
[359600036,1746176822457,-189.93707123,0.00019999,2]
[359600037,1746176822485,-216.34310785,0.00019999,2]
[359600038,1746176822512,-164.593798,0.00019999,2]
[359600039,1746176822538,-164.593798,0.00019999,2]
[359600040,1746176822566,-275.38270054,0.0002,2]
[359600041,1746176822584,-599.44,0.0002,2]
[359600042,1746176822599,-467.61,0.0002,2]
[359600043,1746176822614,-935.2,0.0002,2]
[359600044,1746176822625,-450.0,0.0002,2]
[359600045,1746176822636,-1000.0,0.0002,2]
[359600046,1746176822647,-450.0,0.0002,2]
[359600047,1746176822658,-450.0,0.0002,2]
[359600048,1746176822680,-450.0,0.0002,2]
[359600049,1746176822696,-450.0,0.000198,2]
[359600050,1746176822712,-450.0,0.0002,2]
[359600051,1746176822728,-450.0,0.0002,2]
[359600052,1746176822740,-733.75,0.0002,2]
[359600053,1746176822751,-891.56,0.0002,2]
[359600054,1746176822768,-450.0,0.0002,2]
[359600055,1746176822779,-4372.86,0.0002,2]
[359600056,1746176822795,-717.85,0.0002,2]
[359600057,1746176822811,-1475.64,0.0002,2]
[359600058,1746176822822,-450.0,0.0002,2]
[359600059,1746176822847,-683.28,0.0002,2]
[359600060,1746176822858,-450.0,0.0002,2]
[359600061,1746176822870,-2362.87,0.0002,2]
[359600062,1746176822886,-450.0,0.0002,2]
[359600063,1746176822901,-503.34,0.0002,2]
[359600064,1746176822912,-548.81,0.0002,2]
[359600065,1746176822923,-867.79,0.0002,2]
[359600066,1746176822939,-450.0,0.0002,2]
[359600067,1746176822955,-450.0,0.0002,2]
[359600068,1746176822966,-825.14,0.0002,2]
[359600069,1746176822978,-155.5769965,0.0002,2]
[359600070,1746176822989,-1300.74,0.0002,2]
[359600071,1746176823000,-459.22,0.0002,2]
[359600072,1746176823011,-450.0,0.0002,2]
[359600073,1746176823021,-450.0,0.0002,2]
[359600074,1746176823051,-432.159956,0.00019986,2]
[359600075,1746176823060,-251.420044,0.0002,2]
[359600076,1746176823074,-492.36,0.0002,2]
[359600077,1746176823086,-782.79,0.0002,2]
[359600078,1746176823191,-914.98,0.0002,2]
[359600079,1746176823214,-897.1,0.0002,2]
[359600080,1746176823312,-450.0,0.0002,2]
[359600081,1746176823475,-699.4,0.0002,2]
[359600082,1746176823532,-450.0,0.0002,2]
[359600083,1746176823549,-450.0,0.0002,2]
[359600084,1746176823561,-1435.8,0.0002,2]
[359600085,1746176823572,-450.0,0.0002,2]
[359600086,1746176823588,-661.17,0.0002,2]
[359600087,1746176823600,-450.0,0.0002,2]
[359600088,1746176823611,-885.99,0.0002,2]
[359600089,1746176823628,-195.045089,0.00019986,2]
[359600090,1746176823637,-685.624911,0.0002,2]
[359600091,1746176823652,-500.0,0.0002,2]
[359600092,1746176823669,-450.0,0.0002,2]
[359600093,1746176823682,-151.51770952,0.0002,2]
[359600094,1746176823694,-574.74,0.0002,2]
[359600095,1746176823706,-450.0,0.0002,2]
[359600096,1746176823719,-450.0,0.0002,2]
[359600097,1746176823731,-450.0,0.0002,2]
[359600098,1746176823748,-450.0,0.0002,2]
[359600099,1746176823766,-557.57,0.0002,2]
[359600100,1746176823779,-450.0,0.0002,2]
[359600101,1746176823796,-401.09591016,0.0002,2]
[359600102,1746176823809,-450.0,0.0002,2]
[359600103,1746176823821,-450.0,0.0002,2]
[359600104,1746176823883,-450.0,0.0002,2]
[359600105,1746176823926,-450.0,0.0002,2]
[359600106,1746176823960,-1519.45388632,0.0002,2]
[359600107,1746176823972,-450.0,0.0002,2]
[359600108,1746176823989,-450.0,0.0002,2]
[359600109,1746176824000,-450.0,0.0002,2]
[359600110,1746176824013,-450.0,0.0002,2]
[359600111,1746176824024,-726.49,0.0002,2]
[359600112,1746176824043,-684.22,0.0002,2]
[359600113,1746176824055,-1498.12,0.0002,2]
[359600114,1746176824073,-450.0,0.0002,2]
[359600115,1746176824089,-450.0,0.0002,2]
[359600116,1746176824104,-3536.988839,0.0002,2]
[359600117,1746176824121,-179.26896799,0.0002,2]
[359600118,1746176824330,-450.0,0.0002,2]
[359600119,1746176824342,-8611.26,0.0002,2]
[359600120,1746176824382,-450.0,0.0002,2]
[359600121,1746176824460,-8284.57,0.0002,2]
[359600122,1746176824472,-450.0,0.0002,2]
[359600123,1746176824484,-1132.53,0.0002,2]
[359600124,1746176824495,-680.4,0.0002,2]
[359600125,1746176824507,-1378.12,0.0002,2]
[359600126,1746176824517,-1156.77,0.0002,2]
[359600127,1746176824529,-1061.97383018,0.0002,2]
[359600128,1746176824928,-450.0,0.00019793,2]
[359600129,1746176824937,-450.0,0.00019821,2]
[359600130,1746176824947,-174.29331091,0.000199,2]
[359600131,1746176824955,-41805.83452735,0.0002,2]
[359600132,1746176824972,-450.0,0.0002,2]
[359600133,1746176825005,-8278.95,0.0002,2]
[359600134,1746176825016,-3536.988839,0.0002,2]
[359600135,1746176825027,-3536.988839,0.0002,2]
[359600136,1746176825072,-179.26896799,0.0002,2]
[359600137,1746176825124,-450.0,0.00019793,2]
[359600138,1746176825134,-3086.988839,0.0002,2]
[359600139,1746176825146,-3536.988839,0.0002,2]
[359600140,1746176825167,-179.26896799,0.0002,2]
[359600141,1746176825179,-3336.8284586,0.0002,2]
[359600142,1746176825191,-193.5978477,0.0002,2]
[359600143,1746176825211,-192.09136779,0.0002,2]
[359600144,1746176825222,-975.3953262,0.0002,2]
[359600145,1746176825233,-500.0,0.0002,2]
[359600146,1746176825245,-500.0,0.0002,2]
[359600147,1746176825257,-500.0,0.0002,2]
[359600148,1746176825269,-500.0,0.0002,2]
[359600149,1746176825281,-501.29863064,0.0002,2]
[359600150,1746176825292,-164.593798,0.0002,2]
[359600151,1746176825308,-164.593798,0.0002,2]
[359600152,1746176825326,-594.0,0.0002,2]
[359600153,1746176825338,-303.687651,0.0002,2]
[359600154,1746176825348,-303.687651,0.0002,2]
[359600155,1746176825359,-2237.9702672,0.0002,2]
[359600156,1746176825370,-14759.5326566,0.0002,2]
[359600157,1746176825382,-151.0,0.0002,2]
[359600158,1746176825417,-151.0,0.0002,2]
[359600159,1746176825523,-337.094471,0.0002,2]
[359600160,1746176825548,-397.359816,0.0002,2]
[359600161,1746176825560,-337.094471,0.0002,2]
[359600162,1746176825571,-432.159956,0.0002,2]
[359600163,1746176825582,-397.359816,0.0002,2]
[359600164,1746176825598,-189.93707123,0.00019986,2]
[359600165,1746176825609,-5.10801777,0.00019986,2]
[359600166,1746176825618,-211.23509008,0.0002,2]
[359600167,1746176825629,-164.593798,0.0002,2]
[359600168,1746176825692,-164.593798,0.0002,2]
[359600169,1746176825745,-275.38270054,0.0002,2]
[359600170,1746176825757,-193899.31982282,0.0002,2]
[359600171,1746176825984,-14848.03,0.00019821,2]
[359600172,1746176825993,-60756.48657869,0.0002,2]
[359600173,1746176826003,-308408.33842131,0.0002,2]
[359600174,1746176826377,-555.79,0.000198,2]
[359600175,1746176826385,-291.86484364,0.00019973,2]
[359600176,1746176826395,-381645.74627004,0.0002,2]
[359600178,1746176865194,180.27167837,0.00019055,2]
[359600179,1746176865217,19.72832163,0.00019055,2]
[359600181,1746176880084,801.72,0.00019051,2]
[359600182,1746176881901,200.0,0.00019309,2]
[359600184,1746176929172,-478.02524156,0.00019567,2]
[359600185,1746176929202,-340.29081811,0.00019793,2]
[359600186,1746176929233,-494.06,0.00019793,2]
[359600187,1746176929264,-714.01,0.00019793,2]
[359600188,1746176929296,-450.0,0.00019793,2]
[359600189,1746176929327,-1053.4,0.00019793,2]
[359600190,1746176929369,-1339.98,0.00019793,2]
[359600191,1746176929718,-1478.97,0.00019793,2]
[359600192,1746176929749,-450.0,0.00019793,2]
[359600193,1746176929779,-62.26394033,0.00019793,2]
[359600198,1746177001979,2000.0,0.0002,4]
[359600199,1746177019875,1978.55167837,0.00019046,2]
[359600200,1746177019897,3000.0,0.00019046,2]
[359600201,1746177019922,3000.0,0.00019046,2]
[359600202,1746177019944,3000.0,0.00019046,2]
[359600203,1746177019968,1163.60832163,0.00019046,2]
[359600208,1746177031536,-338.53820879,0.0001977,2]
[359600209,1746177031546,-361.46179121,0.00019792,2]
[359600210,1746177031643,-188.53820879,0.00019792,2]
[359600211,1746177031652,-300.0,0.00019792,2]
[359600212,1746177031662,-1200.0,0.00019792,2]
[359600213,1746177031671,-300.0,0.00019792,2]
[359600214,1746177031680,-250.0,0.00019793,2]
[359600215,1746177031689,-833.34605967,0.00019793,2]
[359600216,1746177031699,-450.0,0.00019793,2]
[359600217,1746177031708,-450.0,0.00019793,2]
[359600218,1746177031718,-450.0,0.00019793,2]
[359600219,1746177031727,-1449.49050654,0.00019793,2]
[359600220,1746177031745,-1014.17949346,0.00019793,2]
[359600221,1746177031754,-450.0,0.00019793,2]
[359600222,1746177031762,-450.0,0.00019793,2]
[359600223,1746177031772,-3080.47,0.00019793,2]
[359600224,1746177031782,-608.71,0.00019793,2]
[359600225,1746177031791,-450.0,0.00019793,2]
[359600226,1746177031800,-450.0,0.00019793,2]
[359600227,1746177031809,-450.0,0.00019793,2]
[359600228,1746177031819,-450.0,0.00019793,2]
[359600229,1746177031828,-549.79,0.00019793,2]
[359600230,1746177031837,-450.0,0.00019793,2]
[359600231,1746177031847,-450.0,0.00019793,2]
[359600232,1746177031856,-575.1,0.00019793,2]
[359600233,1746177031866,-450.0,0.00019793,2]
[359600234,1746177031875,-933.22,0.00019793,2]
[359600235,1746177031884,-877.59,0.00019793,2]
[359600236,1746177031894,-733.41,0.00019793,2]
[359600237,1746177031903,-450.0,0.00019793,2]
[359600238,1746177031912,-450.0,0.00019793,2]
[359600239,1746177031923,-450.0,0.00019793,2]
[359600240,1746177031932,-1979.23,0.00019793,2]
[359600241,1746177031941,-450.0,0.00019793,2]
[359600242,1746177031950,-450.0,0.00019793,2]
[359600243,1746177031960,-450.0,0.00019793,2]
[359600245,1746177031969,-450.0,0.00019793,2]
[359600247,1746177031978,-450.0,0.00019793,2]
[359600249,1746177031988,-1238.02,0.00019793,2]
[359600251,1746177031997,-527.11,0.00019793,2]
[359600253,1746177032007,-2432.47,0.00019793,2]
[359600255,1746177032016,-450.0,0.00019793,2]
[359600257,1746177032026,-521.6,0.00019793,2]
[359600259,1746177032036,-450.0,0.00019793,2]
[359600261,1746177032046,-450.0,0.00019793,2]
[359600263,1746177032055,-450.0,0.00019793,2]
[359600265,1746177032065,-3586.73,0.00019793,2]
[359600267,1746177032075,-450.0,0.00019793,2]
[359600269,1746177032084,-619.56,0.00019793,2]
[359600271,1746177032094,-450.0,0.00019793,2]
[359600273,1746177032103,-450.0,0.00019793,2]
[359600275,1746177032113,-598.97,0.00019793,2]
[359600277,1746177032122,-450.0,0.00019793,2]
[359600279,1746177032132,-450.0,0.00019793,2]
[359600281,1746177032143,-1246.54,0.00019793,2]
[359600283,1746177032153,-450.0,0.00019793,2]
[359600285,1746177032162,-450.0,0.00019793,2]
[359600287,1746177032173,-1082.53,0.00019793,2]
[359600289,1746177032184,-450.0,0.00019793,2]
[359600291,1746177032195,-450.0,0.00019793,2]
[359600294,1746177032205,-450.0,0.00019793,2]
[359600296,1746177032215,-546.49,0.00019793,2]
[359600298,1746177032224,-450.0,0.00019793,2]
[359600300,1746177032234,-1065.44,0.00019793,2]
[359600302,1746177032243,-450.0,0.00019793,2]
[359600304,1746177032253,-450.0,0.00019793,2]
[359600306,1746177032262,-450.0,0.00019793,2]
[359600308,1746177032271,-450.0,0.00019793,2]
[359600310,1746177032281,-859.72,0.00019793,2]
[359600312,1746177032290,-450.0,0.00019793,2]
[359600314,1746177032299,-450.0,0.00019793,2]
[359600316,1746177032309,-579.62,0.00019793,2]
[359600318,1746177032318,-471.84,0.00019793,2]
[359600320,1746177032327,-896.23,0.00019793,2]
[359600322,1746177032337,-863.32,0.00019793,2]
[359600324,1746177032346,-450.0,0.00019793,2]
[359600325,1746177032356,-876.86,0.00019793,2]
[359600326,1746177032366,-450.0,0.00019793,2]
[359600327,1746177032375,-450.0,0.00019793,2]
[359600328,1746177032385,-450.0,0.00019793,2]
[359600329,1746177032395,-1375.97,0.00019793,2]
[359600330,1746177032404,-687.94,0.00019793,2]
[359600331,1746177032414,-450.0,0.00019793,2]
[359600332,1746177032423,-450.0,0.00019793,2]
[359600333,1746177032433,-450.0,0.00019793,2]
[359600334,1746177032442,-450.0,0.00019793,2]
[359600335,1746177032453,-450.0,0.00019793,2]
[359600336,1746177032464,-450.0,0.00019793,2]
[359600337,1746177032473,-592.93,0.00019793,2]
[359600338,1746177032483,-450.0,0.00019793,2]
[359600339,1746177032493,-1047.26,0.00019793,2]
[359600340,1746177032502,-450.0,0.00019793,2]
[359600341,1746177032511,-843.98,0.00019793,2]
[359600342,1746177032520,-450.0,0.00019793,2]
[359600343,1746177032530,-2531.83,0.00019793,2]
[359600344,1746177032539,-450.0,0.00019793,2]
[359600345,1746177032549,-450.0,0.00019793,2]
[359600346,1746177032558,-450.0,0.00019793,2]
[359600347,1746177032567,-450.0,0.00019793,2]
[359600348,1746177032577,-57057.32554645,0.00019793,2]
[359600349,1746177032594,-796.98009551,0.00019793,2]
[359600350,1746177032605,-503.24694489,0.00019793,2]
[359600351,1746177032617,-23547.12738032,0.00019793,2]
[359600356,1746177037591,-2758.05213013,0.00019793,2]
[359600357,1746177037680,-135216.8779027,0.00019793,2]
[359600358,1746177037690,-1009.51,0.00019793,2]
[359600359,1746177037700,-726.19,0.00019793,2]
[359600360,1746177037710,-544.02,0.00019793,2]
[359600361,1746177037720,-1116.92,0.00019793,2]
[359600362,1746177037730,-450.0,0.00019793,2]
[359600363,1746177037740,-450.0,0.00019793,2]
[359600364,1746177037750,-450.0,0.00019793,2]
[359600365,1746177037760,-2361.01,0.00019793,2]
[359600366,1746177037770,-525.94,0.00019793,2]
[359600367,1746177037780,-450.0,0.00019793,2]
[359600368,1746177037791,-450.0,0.00019793,2]
[359600369,1746177037802,-155.5769965,0.00019799,2]
[359600370,1746177037811,-500.0,0.00019799,2]
[359600371,1746177037823,-332.40610084,0.00019799,2]
[359600372,1746177037832,-151.44017549,0.00019799,2]
[359600373,1746177037842,-450.0,0.000198,2]
[359600374,1746177037852,-1075.68,0.000198,2]
[359600375,1746177037862,-450.0,0.000198,2]
[359600376,1746177037872,-450.0,0.000198,2]
[359600377,1746177037882,-450.0,0.000198,2]
[359600379,1746177037893,-450.0,0.000198,2]
[359600381,1746177037902,-450.0,0.000198,2]
[359600383,1746177037912,-450.0,0.000198,2]
[359600385,1746177037922,-450.0,0.000198,2]
[359600387,1746177037932,-804.1,0.000198,2]
[359600389,1746177037944,-474.64,0.000198,2]
[359600391,1746177037954,-974.12,0.000198,2]
[359600393,1746177037964,-790.41,0.000198,2]
[359600426,1746177038263,-450.0,0.000198,2]
[359600429,1746177038283,-450.0,0.000198,2]
[359600431,1746177038293,-450.0,0.000198,2]
[359600433,1746177038303,-579.12,0.000198,2]
[359600435,1746177038313,-898.87,0.000198,2]
[359600438,1746177038323,-1009.15,0.000198,2]
[359600440,1746177038334,-786.48,0.000198,2]
[359600441,1746177038343,-937.22,0.000198,2]
[359600443,1746177038353,-6210.78,0.000198,2]
[359600446,1746177038362,-1222.64,0.000198,2]
[359600447,1746177038372,-450.0,0.000198,2]
[359600449,1746177038381,-450.0,0.000198,2]
[359600451,1746177038391,-2736.86,0.000198,2]
[359600454,1746177038400,-1970.59,0.000198,2]
[359600456,1746177038410,-450.0,0.000198,2]
[359600458,1746177038419,-973.45,0.000198,2]
[359600460,1746177038428,-450.0,0.000198,2]
[359600462,1746177038438,-450.0,0.000198,2]
[359600464,1746177038448,-543.27,0.000198,2]
[359600466,1746177038457,-450.0,0.000198,2]
[359600468,1746177038468,-478.4757296,0.000198,2]
[359600470,1746177038478,-1465.15,0.000198,2]
[359600472,1746177038487,-450.0,0.000198,2]
[359600474,1746177038496,-482.29,0.000198,2]
[359600476,1746177038505,-1188.52,0.000198,2]
[359600478,1746177038514,-450.0,0.000198,2]
[359600480,1746177038523,-450.0,0.000198,2]
[359600482,1746177038533,-507.45,0.000198,2]
[359600484,1746177038543,-3063.23,0.000198,2]
[359600486,1746177038552,-1500.84,0.000198,2]
[359600487,1746177038562,-813.84,0.000198,2]
[359600490,1746177038572,-1642.43,0.000198,2]
[359600492,1746177038582,-483.17,0.000198,2]
[359600493,1746177038591,-573.11,0.000198,2]
[359600495,1746177038600,-450.0,0.000198,2]
[359600498,1746177038610,-450.0,0.000198,2]
[359600500,1746177038619,-7701.78,0.000198,2]